{"text_format":"1","workbook":"xlsx","n_sheets":5,"sheets":["INSTRUCTIONS to enable Macro's","--ENTER-- STUDENT INFORMATION","VLOOKup Table","Dropdown LIST","Charter Schools"],"not_rendered":{"charts":0,"images":4,"macros":1,"external_links":0,"defined_names":23,"comments":0,"pivot_tables":0},"unopened":[],"bounds":{"document_bytes":16777216,"sheet_cells":100000,"rows_first":2000,"rows_last":500,"rows_between":2000,"halvings":0,"cell_chars":16384,"cell_head_chars":4096},"cells_cut":0,"cells_raw":0,"read":"whole","date_system":"1900"}

{"sheet":"INSTRUCTIONS to enable Macro's","index":0,"n_rows":0,"n_cols":0,"rows_kept":0,"cut":false,"hidden":false,"merged":[]}

{"sheet":"--ENTER-- STUDENT INFORMATION","index":1,"n_rows":64,"n_cols":11,"rows_kept":64,"cut":false,"hidden":false,"merged":[[63,2,63,12],[29,3,29,11],[33,3,33,8],[16,3,16,11],[55,10,55,11],[50,8,50,9],[57,3,57,8],[55,3,55,8],[46,3,46,11],[43,7,43,8],[53,3,53,11],[26,3,26,11],[31,3,31,8],[21,3,21,7],[24,9,24,11],[31,10,31,11],[4,2,4,11],[48,3,48,11],[0,2,0,12],[1,2,1,12],[41,6,41,7],[7,9,7,10],[24,3,24,5],[7,3,7,5],[11,3,11,11],[18,6,18,11],[19,3,19,11],[5,2,5,3],[2,2,2,12],[13,3,13,11],[5,4,5,11],[9,4,9,5]]}
[null,null,"NOTIFICATION INVITATION AND DATA COLLECTION FORM"]
[null,null,"HOUSE BILL 10-1274     |    COMPLETE ONE FORM PER STUDENT"]
[null,null,"A Qualifying Student as defined in the MOU between the Colorado Department of Human Services\nand the Colorado Department of Education will be transitioning from a Treating Agency:"]
[]
[null,null,"TO BE COMPLETED BY TREATING AGENCY OR COUNTY DEPARTMENT OF HUMAN SOCIAL\n                                          SERVICES OR DIVISION OF YOUTH CORRECTIONS"]
[null,null,"[A] - Receiving School District or State Charter School Institute:"]
[]
[null,null,"[B] - SASID:",null,null,null,null,null,"[C] - DOB:"]
[]
[null,null,"[D] - Date notice was sent:",null,null,null,"   [E] - Date of anticipated discharge:"]
[]
[null,null,"[F] - Treating Agency:"]
[]
[null,null,"        If \"Other\", describe:"]
[]
[null,null,"[G] - Type of Treating Agency from which the student was discharged:"]
[]
[]
[null,null,"[H] - Student's address after discharge:"]
[null,null,"Address:"]
[]
[null,null,"City:",null,null,null,null,null,"State:",null,"Zip:"]
[]
[null,null,"[I] - Discharge meeting or transition planning meeting schedule for:"]
[null,null,"Date:",null,null,null,null,null,"Time:"]
[]
[null,null,"Location:"]
[]
[null,null,"[J] - Please Contact the following person to discuss transition planning options:"]
[null,null,"Agency:"]
[]
[null,null,"Name:",null,null,null,null,null,null,"Phone:"]
[]
[null,null,"Email:"]
[]
[null,null,"[K] - Please check one:",null,"Planned Transition:",null,null,null,null,null,"Emergency Placement:"]
[]
[]
[]
[null,null,"TO BE COMPLETED BY CHILD WELFARE EDUCATION LIAISON"]
[]
[null,null,"[L] - Date Notice and Invitation Received:"]
[]
[null,null,"[M] - Date of discharge from Treating Agency:"]
[]
[null,null,"[N] - Educational placement in District or State Charter School Institute:"]
[]
[]
[null,null,"        If \"Other\", describe:"]
[]
[null,null,"[O] - Date student begins receiving educational services:"]
[]
[null,null,"[P] - Child Welfare Educational Liaison contact information:"]
[null,null,"Agency:"]
[]
[null,null,"Name:",null,null,null,null,null,null,"Phone:"]
[]
[null,null,"Email:"]
[]
[null,null,"Email completed form within 30 days of transition:",null,null,null,null,null,null,null,"Facility Schools Unit"]
[null,null,"facility_schools@cde.state.co.us",null,null,null,null,null,null,null,"1560 Broadway, Suite 1175"]
[null,null,"Or fax to:  (303) 866-6767",null,null,null,null,null,null,null,"Denver, CO  80202"]
[]
[null,null,"PLEASE PRINT THIS PAGE AND RETAIN A COPY FOR YOUR AGENCY OR DEPARTMENT"]

{"sheet":"VLOOKup Table","index":2,"n_rows":18,"n_cols":32,"rows_kept":18,"cut":false,"hidden":true,"merged":[]}
["[A] - Receiving School District or State Charter School Institute:","[B] - SASID:","[C] - DOB:","[D] - Date notice was sent:","[E] - Date of anticipated discharge:","[F] - Treating Agency:","FACode","AUDcode2","If \"Other\", describe:","[G] - Type of Treating Agency from which the student was discharged:","[H] - Student's address after discharge:  ADDRESS","CITY","STATE","ZIPCODE","[I] - Discharge meeting or transition planning meeting schedule for:  LOCATION","DATE","TIME","[J] - Please Contact the following person to discuss transition planning options: AGENCY","NAME","PHONE","EMAIL","Planned Transition: (CHECKBOX)","Emergency Placement: (CHECKBOX)","[L] - Date Notice and Invitation Received:","[M] - Date of discharge from Treating Agency:","[N] - Educational placement in District or State Charter School Institute:","If \"Other\", describe:","[O] - Date student begins receiving educational services:","[P] - Child Welfare Educational Liaison contact information: AGENCY","NAME","PHONE","EMAIL"]
[{"$f":"'--ENTER-- STUDENT INFORMATION'!E6","v":0},{"$f":"'--ENTER-- STUDENT INFORMATION'!D8","v":0},{"$f":"'--ENTER-- STUDENT INFORMATION'!J8","v":"00:00:00"},{"$f":"'--ENTER-- STUDENT INFORMATION'!E10","v":"00:00:00"},{"$f":"'--ENTER-- STUDENT INFORMATION'!L10","v":"00:00:00"},{"$f":"'--ENTER-- STUDENT INFORMATION'!D12","v":0},null,null,{"$f":"'--ENTER-- STUDENT INFORMATION'!D14","v":0},{"$f":"'--ENTER-- STUDENT INFORMATION'!D17","v":0},{"$f":"'--ENTER-- STUDENT INFORMATION'!D20","v":0},{"$f":"'--ENTER-- STUDENT INFORMATION'!D22","v":0},{"$f":"'--ENTER-- STUDENT INFORMATION'!J22","v":0},{"$f":"'--ENTER-- STUDENT INFORMATION'!L22","v":0},{"$f":"'--ENTER-- STUDENT INFORMATION'!D27","v":0},{"$f":"'--ENTER-- STUDENT INFORMATION'!D25","v":"00:00:00"},{"$f":"'--ENTER-- STUDENT INFORMATION'!J25","v":0},{"$f":"'--ENTER-- STUDENT INFORMATION'!D30","v":0},{"$f":"'--ENTER-- STUDENT INFORMATION'!D32","v":0},{"$f":"'--ENTER-- STUDENT INFORMATION'!K32","v":0},{"$f":"'--ENTER-- STUDENT INFORMATION'!D34","v":0},null,null,{"$f":"'--ENTER-- STUDENT INFORMATION'!G42","v":"00:00:00"},{"$f":"'--ENTER-- STUDENT INFORMATION'!H44","v":"00:00:00"},{"$f":"'--ENTER-- STUDENT INFORMATION'!D47","v":0},{"$f":"'--ENTER-- STUDENT INFORMATION'!D49","v":0},{"$f":"'--ENTER-- STUDENT INFORMATION'!I51","v":0},{"$f":"'--ENTER-- STUDENT INFORMATION'!D54","v":0},{"$f":"'--ENTER-- STUDENT INFORMATION'!D56","v":0},{"$f":"'--ENTER-- STUDENT INFORMATION'!K56","v":0},{"$f":"'--ENTER-- STUDENT INFORMATION'!D58","v":0}]
[]
[]
[]
[]
[]
[]
[]
[]
[]
[]
[]
[]
[null,null,null,null,null,"match up FAC with #'s and AU with #'s need to make a VLOOKUP table"]
[]
[]
[null,null,null,null,null,"'=VLOOKUP(H18,DropDownMenuLists!G1:I68,2,FALSE)"]

{"sheet":"Dropdown LIST","index":3,"n_rows":198,"n_cols":12,"rows_kept":198,"cut":false,"hidden":true,"merged":[]}
[null,"FACname","FACode","AUDcode2",null,"AUname","AUcode","AUDcode1",null,"EducPlacement",null,"TreAgency"]
[null,"\" Other \"","0000","0000",null,"Adams 1, Mapleton","01010","0010",null,"Alternative School",null,"Day Treatment Program"]
[null,"Alternative Homes for Youth ","6022","3120",null,"Adams 12, Northglenn-Thornton","01020","0020",null,"Contract Services",null,"Hospital"]
[null,"Arapahoe House Stepwise ","6025","0020",null,"Adams 14, Commerce City","01030","0030",null,"District Self-contained or Intensive Services",null,"Division of Youth Corrections"]
[null,"Aurora Mental Health - Hampden Academy ","6028","0180",null,"Adams 27J, Brighton","01040","0040",null,"Home-Bound Services",null,"Residential Facility"]
[null,"Aurora Mental Health - Metro Children's Center ","6020","0130",null,"Adams 50, Westminster","01070","0070",null,"Neighborhood School"]
[null,"Cerebral Palsy Center",6011,"0880",null,"Arapahoe 1, Englewood","03010","0120",null,"Out of District Day Treatment Program"]
[null,"Children's Ark ","6012","1030",null,"Arapahoe 2, Sheridan","03020","0123",null,"Other, Please Describe"]
[null,"Children's Hospital","6013","0180",null,"Arapahoe 5, Cherry Creek","03030","0130"]
[null,"Colorado Mental Health Institute at Pueblo",6178,66060,null,"Arapahoe 6, Littleton","03040","0140"]
[null,"Colorado School for the Deaf and Blind",6176,66050,null,"Adams-Arapahoe 28J, Aurora","03060","0180"]
[null,"Community Reach Center","6015","0020",null,"Boulder RE1J, St. Vrain Valley","07010","0470"]
[null,"Court House","6017","0880",null,"Boulder RE2, Boulder Valley","07020","0480"]
[null,"Craig Hospital","6069","0120",null,"Charter School Institute","80010","8001"]
[null,"Denver Area Youth Services (DAYS), Bryant Street","6073","0880",null,"Delta 50(J), Delta","15010","0870"]
[null,"Denver Children's Home ","6075","0880",null,"Denver 1, Denver","16010","0880"]
[null,"Denver Health Medical Center","6079","0880",null,"Douglas Re 1, Castle Rock","18010","0900"]
[null,"Devereux Cleo Wallace - Westminster ","6082","1420",null,"El Paso 2, Harrison","21020","0980"]
[null,"Division of Youth Corrections (Code 6195 is no longer   valid)","NUMBER","66080",null,"El Paso 3, Widefield","21030","0990"]
[null,"El Pueblo Boy's and Girl's Ranch ","6086","2700",null,"El Paso 8, Fountain","21040","1000"]
[null,"Excelsior Youth Center ","6039","0130",null,"El Paso 11, Colorado Springs","21050","1010"]
[null,"Family Crisis Center ","6041","0880",null,"El Paso 12, Cheyenne Mountain","21060","1020"]
[null,"Family Tree Gemini House ","6021","1420",null,"El Paso 20, Academy","21080","1040"]
[null,"Forest Heights Lodge ","6407","1420",null,"El Paso 38, Lewis-Palmer","21085","1080"]
[null,"Gateway - Delta","6023","0870",null,"El Paso 49, Falcon","21090","1110"]
[null,"Gateway - Grand Junction","6024","2000",null,"Fort Lupton/Keenesburg","21490"]
[null,"Griffith Center - Colorado Springs ","6091","1010",null,"Weld Re-3, Keenesburg","21490","3090"]
[null,"Hand Up Homes For Youth","6049","2000",null,"Weld Re-8, Fort Lupton","21490","3140"]
[null,"Hilltop Youth Services","6414","2000",null,"Fremont Re-1, Canon City","22010","1140"]
[null,"Hope Center",6412,"0880",null,"Gunnison","26011"]
[null,"Jefferson Hills - Aurora","6032","0180",null,"Gunnison Re-1J, Gunnison","26011","1360"]
[null,"Jefferson Hills - New Vistas",4839,"1420",null,"Hinsdale Re 1, Lake City","26011","1380"]
[null,"Joshua School","6206","0130",null,"Jefferson R-1, Lakewood","30011","1420"]
[null,"Kidz Ark","6052","1828",null,"Larimer R-1, Poudre","35010","1550"]
[null,"Laradon Hall","6092","0880",null,"Larimer R-2J, Thompson","35020","1560"]
[null,"Mental Health Center of Denver","6095","0880",null,"Larimer R-3, Park","35030","1570"]
[null,"Midway Youth Services - Remington","6108","1550",null,"Logan Re-1, Valley","38010","1828"]
[null,"Mountain Crest Behavioral Health Care","6101","1550",null,"Mesa","39031"]
[null,"Mountain Star Center","6061","0880",null,"Mesa 49Jt, DeBeque","39031","1980"]
[null,"Mt. Saint Vincent's Home ","6102","0880",null,"Mesa 50, Collbran","39031","1990"]
[null,"National Jewish Hospital","6107","0880",null,"Mesa 51, Grand Junction","39031","2000"]
[null,"Prince Street Academy","6415","0130",null,"Moffat Re 1, Craig","41010","2020"]
[null,"PSI Cedar Springs","6031","0980",null,"Montrose Re-1J, Montrose","43010","2180"]
[null,"Reflections For Youth","6099","1560",null,"Morgan Re-3, Fort Morgan","44020","2405"]
[null,"Rocky Mountain Youth Academy","6109","0550",null,"Pueblo 60, Urban","51010","2690"]
[null,"Roundup School","6110","1010",null,"Pueblo 70, Rural","51020","2700"]
[null,"Savio House ","6112","0880",null,"Weld Re-4, Windsor","62040","3100"]
[null,"Serenity Education & Day Treatment Center","6210","0180",null,"Weld Re-5J, Johnstown (formerly with 64203)","62050","3110"]
[null,"Sewall",6175,"0880",null,"Weld 6, Greeley","62060","3120"]
[null,"Shiloh Home - Adams","6204","0030",null,"Centennial BOCES","64203","9035"]
[null,"Shiloh Home - Littleton","6408","1420",null,"Morgan Re-2 (J), Brush","64203","2395"]
[null,"Shiloh Home - Longmont ","6211","0470",null,"Morgan Re-20 (J), Weldon Valley","64203","2505"]
[null,"Shiloh Home - The Sanctuary ","8115",null,null,"Morgan Re-50 (J), Wiggins","64203","2515"]
[null,"Southern Peaks Regional Treatment Center","6199","1140",null,"Weld Re-1, Gilcrest","64203","3080"]
[null,"Spanish Peaks Mental Health Center","6125","2690",null,"Weld Re-2, Eaton","64203","3085"]
[null,"Starpoint",6214,null,null,"Weld Re-7, Kersey","64203","3130"]
[null,"Synergy ","6127","0880",null,"Weld Re-9, Ault","64203","3145"]
[null,"Synergy - Turning Point","6129","0880",null,"Weld Re-10, Briggsdale","64203","3146"]
[null,"Tennyson Center - CCH","6063","0880",null,"Weld Re-11, Prairie","64203","3147"]
[null,"Tennyson Center - Littleton","6064","0140",null,"Weld Re-12, Grover","64203","3148"]
[null,"Third Way Center  ","6416","0880",null,"East Central BOCES","64043","9025"]
[null,"Third Way Center - Lowry","6215","0180",null,"Adams 29J, Bennett","64043","0050"]
[null,"Turning Point - Carbondale ","8819",null,null,"Adams 31J, Strasburg","64043","0060"]
[null,"Turning Point - Waverly","6038","1550",null,"Arapahoe 26J, Deer Trail","64043","0170"]
[null,"Turning Point - Weld County","6410","3120",null,"Arapahoe 32J, Byers","64043","0190"]
[null,"Turning Point Day Treatment","6409","1550",null,"Cheyenne R-1, Kit Carson","64043","0510"]
[null,"Valley View Youth Recovery Center","6053","1180",null,"Cheyenne RE-5","64043","0520"]
[null,"Western Mountain Youth Services ","9726",null,null,"Elbert C-1, Elizabeth","64043","0920"]
[null,"Youth Track - San Luis Valley ","6411","0100",null,"Elbert C-2, Kiowa","64043","0930"]
[null,null,null,null,null,"Elbert 300, Agate","64043","0960"]
[null,null,null,null,null,"Kit Carson C-20 Arriba/Flagler","64043","1450"]
[null,null,null,null,null,"Kit Carson R-23, High Plains","64043","1460"]
[null,null,null,null,null,"Kit Carson R-4, Stratton","64043","1480"]
[null,null,null,null,null,"Kit Carson R-5, Bethune","64043","1490"]
[null,null,null,null,null,"Kit Carson RE-6J, Burlington","64043","1500"]
[null,null,null,null,null,"Lincoln C113, Hugo/Genoa","64043","1780"]
[null,null,null,null,null,"Lincoln Re 4J, Limon","64043","1790"]
[null,null,null,null,null,"Lincoln Re 23, Karval","64043","1810"]
[null,null,null,null,null,"Washington R-2, Arickaree","64043","3040"]
[null,null,null,null,null,"Washington R-104, Woodlin","64043","3070"]
[null,null,null,null,null,"Mt. Evans BOCS","64053","9140"]
[null,null,null,null,null,"Clear Creek RE-1, Idaho Springs","64053","0540"]
[null,null,null,null,null,"Gilpin Re-1, Central City","64053","1330"]
[null,null,null,null,null,"Park 1, Platte Canyon","64053","2600"]
[null,null,null,null,null,"Mountain BOCS","64093","9030"]
[null,null,null,null,null,"Chaffee R-31, Buena Vista","64093","0490"]
[null,null,null,null,null,"Chaffee R-32(J), Salida","64093","0500"]
[null,null,null,null,null,"Eagle Re 50, Eagle","64093","0910"]
[null,null,null,null,null,"Garfield Re-1, Roaring Fork","64093","1180"]
[null,null,null,null,null,"Garfield Re-2, Rifle","64093","1195"]
[null,null,null,null,null,"Garfield 16, Grand Valley","64093","1220"]
[null,null,null,null,null,"Lake R-1, Leadville","64093","1510"]
[null,null,null,null,null,"Park Re-2, Fairplay","64093","2610"]
[null,null,null,null,null,"Pitkin 1, Aspen","64093","2640"]
[null,null,null,null,null,"Summit Re 1, Frisco","64093","3000"]
[null,null,null,null,null,"Northeast Colorado BOCES","64103","9040"]
[null,null,null,null,null,"Logan Re-3, Fleming (French)","64103","1850"]
[null,null,null,null,null,"Logan Re-4, Merino (Buffalo)","64103","1860"]
[null,null,null,null,null,"Logan Re-5, Peetz (Plateau)","64103","1870"]
[null,null,null,null,null,"Phillips Re-1J, Holyoke","64103","2620"]
[null,null,null,null,null,"Phillips Re-2J, Haxtun","64103","2630"]
[null,null,null,null,null,"Sedgwick Re 1, Julesburg","64103","2862"]
[null,null,null,null,null,"Sedgwick Re 3, Platte Valley","64103","2865"]
[null,null,null,null,null,"Washington R-1, Akron","64103","3030"]
[null,null,null,null,null,"Washington R-3, Otis","64103","3050"]
[null,null,null,null,null,"Washington 101, Lone Star","64103","3060"]
[null,null,null,null,null,"Yuma R-J-1, Yuma","64103","3200"]
[null,null,null,null,null,"Wray RD-2, Wray","64103","3210"]
[null,null,null,null,null,"Idalia RJ-3, Idalia","64103","3220"]
[null,null,null,null,null,"Liberty J-4, Liberty","64103","3230"]
[null,null,null,null,null,"Northwest Colorado BOCS","64123","9095"]
[null,null,null,null,null,"Grand 1, Kremmling (West)","64123","1340"]
[null,null,null,null,null,"Grand 2, Granby (East)","64123","1350"]
[null,null,null,null,null,"Jackson R-1, Walden","64123","1410"]
[null,null,null,null,null,"Routt Re 1, Hayden","64123","2760"]
[null,null,null,null,null,"Routt Re 2, Steamboat Springs","64123","2770"]
[null,null,null,null,null,"Routt Re 3, Oak Creek","64123","2780"]
[null,null,null,null,null,"Pikes Peak BOCS","64133","9045"]
[null,null,null,null,null,"Elbert 100J, Simla","64133","0940"]
[null,null,null,null,null,"Elbert 200, Elbert","64133","0950"]
[null,null,null,null,null,"El Paso RJ1, Calhan","64133","0970"]
[null,null,null,null,null,"El Paso 22, Ellicott","64133","1050"]
[null,null,null,null,null,"El Paso 23 Jt, Peyton","64133","1060"]
[null,null,null,null,null,"El Paso 28, Hanover","64133","1070"]
[null,null,null,null,null,"El Paso 54 Jt, Edison","64133","1120"]
[null,null,null,null,null,"El Paso 60 Jt, Miami-Yoder","64133","1130"]
[null,null,null,null,null,"Fremont Re-2, Florence (moved from 64163)","64133","1150"]
[null,null,null,null,null,"Rio Blanco BOCS","64213","9125"]
[null,null,null,null,null,"Rio Blanco RE1, Meeker","64213","2710"]
[null,null,null,null,null,"Rio Blanco RE4, Rangely","64213","2720"]
[null,null,null,null,null,"San Juan BOCS","64143","9050"]
[null,null,null,null,null,"Archuleta 50 Jt, Pagosa Springs","64143","0220"]
[null,null,null,null,null,"Dolores Re 2, Dove Creek (formerly 64083)","64143","0890"]
[null,null,null,null,null,"La Plata 10Jt-R, Bayfield","64143","1530"]
[null,null,null,null,null,"La Plata 11 Jt, Ignacio","64143","1540"]
[null,null,null,null,null,"La Plata 9-R, Durango","64143","1520"]
[null,null,null,null,null,"Montezuma Re 1, Cortez (formerly 64083)","64143 ","2035"]
[null,null,null,null,null,"Montezuma RE 4A, Dolores (formerly 64083)","64143 ","2055"]
[null,null,null,null,null,"Montezuma Re-6, Mancos (formerly 64083)","64143 ","2070"]
[null,null,null,null,null,"San Juan 1, Silverton","64143","2820"]
[null,null,null,null,null,"San Luis Valley BOCS","64153","9055"]
[null,null,null,null,null,"Alamosa Re-11J, Alamosa","64153","0100"]
[null,null,null,null,null,"Alamosa Re-22 J, Sangre de Cristo","64153","0110"]
[null,null,null,null,null,"Conejos RE1J, La Jara","64153","0550"]
[null,null,null,null,null,"Conejos 6J, Sanford","64153","0560"]
[null,null,null,null,null,"Conejos RE 10, Antonito","64153","0580"]
[null,null,null,null,null,"Costilla R-1, San Luis","64153","0640"]
[null,null,null,null,null,"Costilla R-30, Sierra Grande","64153","0740"]
[null,null,null,null,null,"Mineral 1, Creede","64153","2010"]
[null,null,null,null,null,"Rio Grande C-7, Del Norte","64153","2730"]
[null,null,null,null,null,"Rio Grande C-8, Monte Vista","64153","2740"]
[null,null,null,null,null,"Rio Grande Re-33J, Sargent","64153","2750"]
[null,null,null,null,null,"Saguache Re 1, Mountain Valley","64153","2790"]
[null,null,null,null,null,"Saguache 2, Moffat","64153","2800"]
[null,null,null,null,null,"Saguache 26 Jt, Center","64153","2810"]
[null,null,null,null,null,"Santa Fe Trail BOCES","64160","9150"]
[null,null,null,null,null,"Bent Re-1, Las Animas","64160","0290"]
[null,null,null,null,null,"Otero R 1, La Junta","64160","2520"]
[null,null,null,null,null,"Otero R 2, Rocky Ford","64160","2530"]
[null,null,null,null,null,"Otero 31, Cheraw","64160","2560"]
[null,null,null,null,null,"Otero 33, Swink","64160","2570"]
[null,null,null,null,null,"South Central BOCS","64163","9060"]
[null,null,null,null,null,"Crowley RE-1, Ordway","64163","0770"]
[null,null,null,null,null,"Custer C-1, Westcliffe","64163","0860"]
[null,null,null,null,null,"Fremont Re-3, Cotopaxi","64163","1160"]
[null,null,null,null,null,"Huerfano Re-1, Walsenburg","64163","1390"]
[null,null,null,null,null,"Huerfano Re-2, La Veta","64163","1400"]
[null,null,null,null,null,"Las Animas 1, Trinidad","64163","1580"]
[null,null,null,null,null,"Las Animas 2, Weston","64163","1590"]
[null,null,null,null,null,"Las Animas 3, Hoehne","64163","1600"]
[null,null,null,null,null,"Las Animas 6, Aguilar","64163","1620"]
[null,null,null,null,null,"Las Animas 82, Branson","64163","1750"]
[null,null,null,null,null,"Otero 3 J, Manzanola","64163","2535"]
[null,null,null,null,null,"Otero R 4J, Fowler","64163","2540"]
[null,null,null,null,null,"Southeastern BOCES","64193","9075"]
[null,null,null,null,null,"Baca RE-1, Walsh","64193","0230"]
[null,null,null,null,null,"Baca RE-3, Pritchett","64193","0240"]
[null,null,null,null,null,"Baca RE-4, Springfield","64193","0250"]
[null,null,null,null,null,"Baca RE-5, Vilas","64193","0260"]
[null,null,null,null,null,"Baca RE-6, Campo","64193","0270"]
[null,null,null,null,null,"Bent RE-2, McClave","64193","0310"]
[null,null,null,null,null,"Kiowa Re-1, Eads","64193","1430"]
[null,null,null,null,null,"Kiowa Re-2, Plainview","64193","1440"]
[null,null,null,null,null,"Las Animas 88, Kim","64193","1760"]
[null,null,null,null,null,"Prowers Re-1, Granada","64193","2650"]
[null,null,null,null,null,"Prowers Re-2, Lamar","64193","2660"]
[null,null,null,null,null,"Prowers Re-3, Holly","64193","2670"]
[null,null,null,null,null,"Prowers RE-13Jt, Wiley","64193","2680"]
[null,null,null,null,null,"Uncompahgre BOCS","64200","9145"]
[null,null,null,null,null,"Montrose RE-2, West End","64200","2190"]
[null,null,null,null,null,"Ouray R-1, Ouray","64200","2580"]
[null,null,null,null,null,"Ouray R-2, Ridgway","64200","2590"]
[null,null,null,null,null,"San Miguel R-1, Telluride","64200","2830"]
[null,null,null,null,null,"San Miguel R-2J, Norwood","64200","2840"]
[null,null,null,null,null,"Ute Pass BOCES","64205","9165"]
[null,null,null,null,null,"El Paso 14, Manitou Springs","64205","1030"]
[null,null,null,null,null,"Teller Re-1, Cripple Creek","64205","3010"]
[null,null,null,null,null,"Teller RE-2, Woodland Park","64205","3020"]

{"sheet":"Charter Schools","index":4,"n_rows":0,"n_cols":0,"rows_kept":0,"cut":false,"hidden":true,"merged":[]}